fUSD/lending_fUSD_20240422
["ID","MTS","AMOUNT","RATE_DAILY","PERIOD"]
[323232687,1713818096144,-4694.91140574,0.0002,2]
[323232688,1713818096152,-1392.41545591,0.0002,2]
[323232689,1713818096161,-3597.71464745,0.0002,2]
[323232690,1713818096170,-819.90502975,0.0002,2]
[323232691,1713818096179,-806.73545778,0.0002,2]
[323232692,1713818096189,-1875.00466935,0.0002,2]
[323232693,1713818096198,-3150.30545539,0.0002,2]
[323232694,1713818096208,-1514.93192562,0.0002,2]
[323232695,1713818096217,-702.63083064,0.0002,2]
[323232696,1713818096227,-1715.45411533,0.0002,2]
[323232697,1713818096237,-1604.49019662,0.0002,2]
[323232698,1713818096247,-1853.1693769,0.0002,2]
[323232699,1713818096256,-2000.0,0.0002001,2]
[323232700,1713818096266,-2000.0,0.0002001,2]
[323232701,1713818096275,-2000.0,0.0002002,2]
[323232702,1713818096285,-2000.0,0.0002002,2]
[323232703,1713818096295,-2000.0,0.0002003,2]
[323232704,1713818096305,-2000.0,0.0002003,2]
[323232705,1713818096314,-180.81296292,0.00020034,2]
[323232706,1713818096323,-689.01229427,0.00020038,2]
[323232707,1713818096333,-180.81296292,0.00020038,2]
[323232708,1713818096342,-2000.0,0.0002004,2]
[323232709,1713818096351,-2000.0,0.0002004,2]
[323232710,1713818096360,-2000.0,0.0002005,2]
[323232711,1713818096369,-2000.0,0.0002005,2]
[323232712,1713818096378,-153.48106534,0.00020052,2]
[323232713,1713818096387,-152.0,0.00020055,9]
[323232714,1713818096397,-1000.0,0.00020058,2]
[323232715,1713818096405,-2000.0,0.0002006,2]
[323232716,1713818096414,-2000.0,0.0002006,2]
[323232717,1713818096423,-157.0559743,0.00020061,2]
[323232718,1713818096432,-3046.070115,0.0002007,2]
[323232719,1713818096441,-3046.070115,0.0002007,2]
[323232720,1713818096450,-156.03468475,0.00020073,2]
[323232721,1713818096459,-7600.0,0.0002009,2]
[323232722,1713818096468,-159.75272386,0.0002009,2]
[323232723,1713818096477,-766.62411611,0.00020097,2]
[323232724,1713818096486,-4600.59,0.000201,2]
[323232725,1713818096496,-3164.95,0.000201,2]
[323232726,1713818096505,-153.63168074,0.00020115,2]
[323232727,1713818096514,-156.03468475,0.0002013,2]
[323232728,1713818096523,-394.52557543,0.00020148,2]
[323232729,1713818096532,-153.63168074,0.00020151,2]
[323232730,1713818096541,-766.62411611,0.00020156,2]
[323232731,1713818096550,-627.9132609,0.00020159,2]
[323232732,1713818096559,-627.9132609,0.00020159,2]
[323232733,1713818096568,-627.9132609,0.00020159,2]
[323232734,1713818096577,-627.9132609,0.00020159,2]
[323232735,1713818096586,-627.9132609,0.00020159,2]
[323232736,1713818096595,-627.9132609,0.00020159,2]
[323232737,1713818096605,-627.9132609,0.00020159,2]
[323232738,1713818096614,-627.9132609,0.00020159,2]
[323232739,1713818096624,-627.9132609,0.00020159,2]
[323232740,1713818096635,-627.9132609,0.00020159,2]
[323232741,1713818096646,-627.9132609,0.00020159,2]
[323232742,1713818096655,-627.9132609,0.00020159,2]
[323232743,1713818096664,-627.9132609,0.00020159,2]
[323232744,1713818096673,-627.9132609,0.00020159,2]
[323232745,1713818096683,-627.9132609,0.00020159,2]
[323232746,1713818096693,-627.9132609,0.00020159,2]
[323232747,1713818096703,-627.9132609,0.00020159,2]
[323232748,1713818096712,-627.9132609,0.00020159,2]
[323232749,1713818096721,-627.9132609,0.00020159,2]
[323232750,1713818096730,-627.9132609,0.00020159,2]
[323232751,1713818096739,-627.9132609,0.00020159,2]
[323232752,1713818096748,-627.9132609,0.00020159,2]
[323232753,1713818096757,-627.9132609,0.00020159,2]
[323232754,1713818096766,-627.9132609,0.00020159,2]
[323232755,1713818096775,-627.9132609,0.00020159,2]
[323232756,1713818096934,-627.9132609,0.00020159,2]
[323232757,1713818096943,-627.9132609,0.00020159,2]
[323232758,1713818096953,-627.9132609,0.00020159,2]
[323232759,1713818096962,-627.9132609,0.00020159,2]
[323232760,1713818096971,-627.9132609,0.00020159,2]
[323232761,1713818096979,-627.9132609,0.00020159,2]
[323232762,1713818096990,-627.9132609,0.00020159,2]
[323232763,1713818097000,-627.9132609,0.00020159,2]
[323232764,1713818097010,-627.9132609,0.00020159,2]
[323232765,1713818097019,-627.9132609,0.00020159,2]
[323232766,1713818097028,-627.9132609,0.00020159,2]
[323232767,1713818097037,-627.9132609,0.00020159,2]
[323232768,1713818097046,-627.9132609,0.00020159,2]
[323232769,1713818097055,-1255.8265217,0.00020159,2]
[323232770,1713818097064,-150.0,0.0002016,4]
[323232771,1713818097073,-150.0,0.0002016,4]
[323232772,1713818097082,-150.0,0.0002016,4]
[323232773,1713818097092,-1543.0,0.00020164,2]
[323232774,1713818097101,-508.0,0.00020164,2]
[323232775,1713818097110,-157.0559743,0.00020169,2]
[323232776,1713818097119,-151.25667543,0.00020195,2]
[323232777,1713818097128,-1000.0,0.000202,2]
[323232778,1713818097137,-152.54386207,0.00020219,2]
[323232779,1713818097147,-331.0,0.0002023,2]
[323232780,1713818097156,-214.0,0.0002023,2]
[323232781,1713818097165,-155.0,0.00020257,2]
[323232782,1713818097174,-154.51581865,0.00020279,2]
[323232783,1713818097184,-152.0,0.00020282,10]
[323232784,1713818097193,-1000.0,0.000203,2]
[323232785,1713818097203,-157.0559743,0.00020335,2]
[323232786,1713818097213,-157.0559743,0.00020336,2]
[323232787,1713818097222,-154.51581865,0.00020349,2]
[323232788,1713818097232,-150.0,0.00020364,4]
[323232789,1713818097241,-690.0,0.0002037,2]
[323232790,1713818097250,-200.0,0.00020395,2]
[323232791,1713818097259,-4196.12,0.000204,2]
[323232792,1713818097268,-7024.27180726,0.000204,2]
[323232793,1713818097278,-180.81296292,0.00020413,2]
[323232794,1713818097287,-47658.19766387,0.00020439,2]
[323232795,1713818097296,-182.10892469,0.0002048,2]
[323232796,1713818097306,-394.52557543,0.00020488,2]
[323232797,1713818097314,-501.99527818,0.000205,2]
[323232798,1713818097323,-150.0,0.000205,2]
[323232799,1713818097332,-152.0,0.00020509,11]
[323232800,1713818097341,-766.62411611,0.0002051,2]
[323232801,1713818097350,-766.62411611,0.00020529,2]
[323232802,1713818097359,-150.0,0.00020533,4]
[323232803,1713818097369,-19860.94,0.00020548,2]
[323232804,1713818097378,-172.99,0.00020548,2]
[323232805,1713818097386,-450.0,0.00020548,2]
[323232806,1713818097397,-150.0,0.00020567,4]
[323232807,1713818097406,-690.0,0.0002058,2]
[323232808,1713818097415,-154.51581865,0.00020584,2]
[323232809,1713818097424,-331.0,0.0002059,2]
[323232810,1713818097433,-214.0,0.0002059,2]
[323232811,1713818097442,-152.54386207,0.00020594,2]
[323232812,1713818097451,-2555.01307111,0.00020604,2]
[323232813,1713818097460,-152.54386207,0.00020615,2]
[323232814,1713818097469,-153.48106534,0.00020625,2]
[323232815,1713818097478,-394.52557543,0.00020629,2]
[323232816,1713818097487,-154.51581865,0.00020629,2]
[323232817,1713818097495,-157.0559743,0.00020634,2]
[323232818,1713818097505,-766.62411611,0.00020637,2]
[323232819,1713818097514,-178.59,0.00020639,2]
[323232820,1713818097522,-162.0,0.0002064,2]
[323232821,1713818097531,-157.0559743,0.00020644,2]
[323232822,1713818097541,-156.03468475,0.00020654,2]
[323232823,1713818097550,-180.81296292,0.00020672,2]
[323232824,1713818097559,-2555.01307111,0.00020678,2]
[323232825,1713818097568,-766.62411611,0.00020692,2]
[323232826,1713818097577,-394.52557543,0.00020695,2]
[323232827,1713818097586,-1003.06,0.0002072,2]
[323232828,1713818097595,-152.0,0.00020736,12]
[323232829,1713818097605,-497287.72070845,0.00020739,2]
[323232830,1713818097614,-180.81296292,0.00020741,2]
[323232831,1713818097623,-154.39465349,0.00020741,2]
[323232832,1713818097632,-159.75272386,0.00020742,2]
[323232833,1713818097642,-150.0,0.00020771,4]
[323232834,1713818097650,-535.64702296,0.00020778,2]
[323232835,1713818097659,-690.0,0.0002079,2]
[323232836,1713818097668,-5116.43669944,0.000208,2]
[323232837,1713818097678,-160.44548268,0.00020849,10]
[323232838,1713818097687,-394.52557543,0.00020851,2]
[323232839,1713818097696,-689.01229427,0.00020855,2]
[323232840,1713818097705,-206.85192704,0.00020856,2]
[323232841,1713818097714,-161.58831606,0.00020856,2]
[323232842,1713818097723,-154.39465349,0.00020891,2]
[323232843,1713818097732,-811.70626689,0.00020892,2]
[323232844,1713818097742,-978548.39426483,0.000209,2]
[323232845,1713818097751,-766.62411611,0.000209,2]
[323232846,1713818097760,-2555.01307111,0.00020903,2]
[323232847,1713818097769,-150.0,0.00020907,4]
[323232848,1713818097779,-160.44548268,0.00020932,10]
[323232849,1713818097788,-1000.0,0.0002095,2]
[323232850,1713818097797,-331.0,0.0002095,2]
[323232851,1713818097806,-214.0,0.0002095,2]
[323232852,1713818097816,-152.0,0.00020963,13]
[323232853,1713818097825,-150.0,0.00020975,4]
[323232854,1713818097834,-157.0559743,0.00020981,2]
[323232855,1713818097843,-483.43153924,0.00020995,2]
[323232856,1713818097852,-98351.81913362,0.00020998,2]
[323232857,1713818097861,-362690.55444613,0.00021,2]
[323232858,1713818097870,-2273274.85839837,0.00021,2]
[323232859,1713818097879,-156819.94249236,0.00021,2]
[323232860,1713818097888,-263186.80265747,0.00021,2]
[323232861,1713818097897,-356390.18147752,0.00021,2]
[323232862,1713818097909,-410003.42672261,0.00021,2]
[323232863,1713818097918,-292425.9994164,0.00021,2]
[323232864,1713818097927,-1302910.21787079,0.00021,2]
[323232865,1713818097936,-650418.93725962,0.00021,3]
[323232866,1713818097945,-265719.38646408,0.00021,2]
[323232867,1713818097956,-528687.51426599,0.00021,2]
[323232868,1713818097965,-133950.22875737,0.00021,2]
[323232869,1713818097976,-1648.85401912,0.00021,2]
[323232870,1713818097988,-1431.274684,0.00021,2]
[323232871,1713818097997,-10214.11403326,0.00021,2]
[323232872,1713818098006,-1500.0,0.00021,2]
[323232873,1713818098016,-5000.0,0.00021,2]
[323232874,1713818098026,-950.0,0.00021,4]
[323232875,1713818098036,-5000.0,0.00021,2]
[323232876,1713818098046,-4600.59,0.00021,2]
[323232877,1713818098056,-3164.95,0.00021,2]
[323232878,1713818098066,-150.0,0.00021,2]
[323232879,1713818098075,-10000.0,0.00021,2]
[323232880,1713818098085,-12000.0,0.00021,3]
[323232881,1713818098095,-10000.0,0.00021,5]
[323232882,1713818098104,-1400.22393056,0.00021,2]
[323232883,1713818098113,-621.42920917,0.00021,2]
[323232884,1713818098122,-726.31837064,0.00021,2]
[323232885,1713818098131,-690.0,0.00021,2]
[323232886,1713818098142,-1564.3965598,0.00021,2]
[323232887,1713818098150,-2000.0,0.00021,2]
[323232888,1713818098159,-150.0,0.00021,2]
[323232889,1713818098168,-5275.0,0.00021,2]
[323232890,1713818098177,-12216.0,0.00021,2]
[323232891,1713818098188,-5063.0,0.00021,2]
[323232892,1713818098198,-3523.0,0.00021,2]
[323232893,1713818098208,-5123.0,0.00021,2]
[323232894,1713818098217,-2000.0,0.0002101,2]
[323232895,1713818098227,-160.44548268,0.00021014,10]
[323232896,1713818098237,-2000.0,0.0002102,2]
[323232897,1713818098246,-157.0559743,0.00021021,2]
[323232898,1713818098255,-152.54386207,0.00021023,2]
[323232899,1713818098265,-600.0,0.0002103,2]
[323232900,1713818098274,-2000.0,0.0002103,2]
[323232901,1713818098283,-2000.0,0.0002104,2]
[323232902,1713818098292,-2000.0,0.0002105,2]
[323232903,1713818098302,-2000.0,0.0002106,2]
[323232904,1713818098311,-151.25667543,0.00021066,2]
[323232905,1713818098320,-2000.0,0.0002107,2]
[323232906,1713818098329,-2000.0,0.0002108,2]
[323232907,1713818098339,-10169.56,0.00021089,7]
[323232908,1713818098350,-10169.56,0.00021089,7]
[323232909,1713818098360,-10169.56,0.00021089,7]
[323232910,1713818098369,-10169.56,0.00021089,7]
[323232911,1713818098378,-2000.0,0.0002109,2]
[323232912,1713818098387,-1039.36,0.00021095,2]
[323232913,1713818098397,-160.44548268,0.00021096,10]
[323232914,1713818098406,-2000.0,0.000211,2]
[323232915,1713818098415,-2000.0,0.0002111,2]
[323232916,1713818098424,-766.62411611,0.00021117,2]
[323232917,1713818098434,-2421.408679,0.0002112,2]
[323232918,1713818098443,-1543.0,0.00021123,2]
[323232919,1713818098453,-508.0,0.00021123,2]
[323232920,1713818098462,-154.98058797,0.00021128,2]
[323232921,1713818098472,-394.52557543,0.00021142,2]
[323232922,1713818098482,-167.35955614,0.00021163,2]
[323232923,1713818098492,-166.66666667,0.00021173,2]
[323232924,1713818098502,-150.0,0.00021178,4]
[323232925,1713818098511,-2555.01307111,0.0002119,2]
[323232926,1713818098521,-152.0,0.0002119,14]
[323232927,1713818098530,-166.81715258,0.00021201,2]
[323232928,1713818098539,-160.44548268,0.00021205,10]
[323232929,1713818098548,-690.0,0.0002121,2]
[323232930,1713818098559,-483.43153924,0.00021269,2]
[323232931,1713818098568,-150.0,0.0002128,4]
[323232932,1713818098579,-150.0,0.0002128,4]
[323232933,1713818098588,-154.51581865,0.00021284,2]
[323232934,1713818098597,-160.44548268,0.00021288,10]
[323232935,1713818098608,-180.81296292,0.0002129,2]
[323232936,1713818098618,-156.5713331,0.00021294,2]
[323232937,1713818098627,-331.0,0.0002131,2]
[323232938,1713818098636,-214.0,0.0002131,2]
[323232939,1713818098646,-180.81296292,0.00021316,2]
[323232940,1713818098655,-159.54545221,0.00021348,2]
[323232941,1713818098665,-180.81296292,0.00021351,2]
[323232942,1713818098674,-10169.56,0.00021362,7]
[323232943,1713818098683,-10169.56,0.00021362,7]
[323232944,1713818098692,-1039.36,0.00021369,2]
[323232945,1713818098702,-160.44548268,0.0002137,10]
[323232946,1713818098712,-2973.01,0.0002137,2]
[323232947,1713818098721,-811.70626689,0.00021377,2]
[323232948,1713818098730,-150.0,0.00021382,4]
[323232949,1713818098741,-154.98058797,0.00021388,2]
[323232950,1713818098752,-9297.85488443,0.000214,2]
[323232951,1713818098763,-152.54386207,0.0002141,2]
[323232952,1713818098773,-153.96460052,0.00021414,2]
[323232953,1713818098784,-152.0,0.00021417,15]
[323232954,1713818098794,-690.0,0.0002142,2]
[323232955,1713818098804,-689.01229427,0.0002142,2]
[323232956,1713818098813,-150.0,0.00021429,4]
[323232957,1713818098824,-153.48106534,0.00021432,2]
[323232958,1713818098835,-160.44548268,0.00021452,10]
[323232959,1713818098846,-151.25667543,0.00021499,2]
[323232960,1713818098856,-49272.52846962,0.000215,3]
[323232961,1713818098867,-150.0,0.000215,2]
[323232962,1713818098877,-150.0,0.00021504,4]
[323232963,1713818098887,-22880.15821656,0.00021509,2]
[323232964,1713818098897,-811.70626689,0.0002151,2]
[323232965,1713818098911,-811.70626689,0.00021525,2]
[323232966,1713818098922,-160.44548268,0.00021534,10]
[323232967,1713818098931,-766.62411611,0.0002154,2]
[323232968,1713818098941,-162.0,0.0002156,2]
[323232969,1713818098951,-500.0,0.00021567,2]
[323232970,1713818098961,-150.0,0.00021579,4]
[323232971,1713818098971,-150.0,0.00021585,4]
[323232972,1713818098982,-152.54386207,0.00021588,2]
[323232973,1713818098993,-502.9,0.00021589,2]
[323232974,1713818099005,-154.96772219,0.00021596,2]
[323232975,1713818099014,-1200.0,0.000216,2]
[323232976,1713818099024,-4196.12,0.000216,2]
[323232977,1713818099034,-969.0,0.00021602,2]
[323232978,1713818099043,-1329.19,0.00021602,2]
[323232979,1713818099054,-541.0,0.00021602,2]
[323232980,1713818099063,-168.29384527,0.00021619,2]
[323232981,1713818099073,-690.0,0.0002163,2]
[323232982,1713818099082,-10169.56,0.00021635,7]
[323232983,1713818099091,-10169.56,0.00021635,7]
[323232984,1713818099101,-157.0559743,0.00021641,2]
[323232985,1713818099110,-1039.36,0.00021643,2]
[323232986,1713818099120,-160.44548268,0.00021644,10]
[323232987,1713818099130,-152.0,0.00021644,16]
[323232988,1713818099139,-156.03468475,0.00021653,2]
[323232989,1713818099148,-150.0,0.00021653,4]
[323232990,1713818099157,-150.0,0.00021653,4]
[323232991,1713818099166,-766.62411611,0.00021662,2]
[323232992,1713818099176,-811.70626689,0.00021668,2]
[323232993,1713818099187,-394.52557543,0.00021668,2]
[323232994,1713818099196,-483.43153924,0.00021668,2]
[323232995,1713818099206,-331.0,0.0002168,2]
[323232996,1713818099216,-214.0,0.0002168,2]
[323232997,1713818099225,-689.01229427,0.00021685,2]
[323232998,1713818099236,-180.81296292,0.00021685,2]
[323232999,1713818099247,-153.48106534,0.00021688,2]
[323233000,1713818099257,-811.70626689,0.00021693,2]
[323233001,1713818099267,-535.64702296,0.00021716,2]
[323233002,1713818099278,-159.75272386,0.00021721,2]
[323233003,1713818099288,-166.84086597,0.00021721,2]
[323233004,1713818099298,-160.44548268,0.00021726,10]
[323233005,1713818099308,-150.0,0.00021728,4]
[323233006,1713818099317,-151.74197672,0.0002175,2]
[323233007,1713818099327,-20000.0,0.00021773,2]
[323233008,1713818099338,-154.51581865,0.00021774,2]
[323233009,1713818099349,-151.25667543,0.00021786,2]
[323233010,1713818099359,-150.0,0.00021789,4]
[323233011,1713818099370,-150.0,0.00021803,4]
[323233012,1713818099381,-157.0559743,0.00021803,2]
[323233013,1713818099392,-160.44548268,0.00021808,10]
[323233014,1713818099402,-180.81296292,0.00021812,2]
[323233015,1713818099412,-156.5713331,0.00021815,2]
[323233016,1713818099422,-2200.0,0.00021841,2]
[323233017,1713818099432,-154.39465349,0.00021848,2]
[323233018,1713818099442,-1474.0,0.00021851,2]
[323233019,1713818099452,-402.0,0.00021851,2]
[323233020,1713818099462,-214.0,0.00021851,2]
[323233021,1713818099472,-989.184,0.00021851,2]
[323233022,1713818099481,-1139.0,0.00021851,2]
[323233023,1713818099491,-443.0,0.00021851,2]
[323233024,1713818099501,-2165.72,0.00021851,2]
[323233025,1713818099512,-37689.0,0.00021851,2]
[323233026,1713818099522,-5893.0,0.00021851,2]
[323233027,1713818099533,-2908.552,0.00021851,2]
[323233028,1713818099544,-457.0,0.00021851,2]
[323233029,1713818099554,-1722.564,0.00021851,2]
[323233030,1713818099565,-157.0559743,0.00021865,2]
[323233031,1713818099575,-154.98058797,0.00021866,2]
[323233032,1713818099585,-152.0,0.00021871,17]
[323233033,1713818099595,-150.0,0.00021877,4]
[323233034,1713818099606,-175793.21,0.0002188,2]
[323233035,1713818099616,-5000.0,0.00021889,2]
[323233036,1713818099627,-5000.0,0.00021889,2]
[323233037,1713818099637,-5000.0,0.00021889,2]
[323233038,1713818099648,-5000.0,0.00021889,2]
[323233039,1713818099658,-5000.0,0.00021889,2]
[323233040,1713818099667,-766.62411611,0.0002189,2]
[323233041,1713818099676,-160.44548268,0.0002189,10]
[323233042,1713818099685,-153.48106534,0.00021892,2]
[323233043,1713818099695,-766.62411611,0.00021896,2]
[323233044,1713818099706,-107070.07831221,0.000219,2]
[323233045,1713818099717,-4600.59,0.000219,2]
[323233046,1713818099727,-3164.95,0.000219,2]
[323233047,1713818099736,-23331.9103831,0.000219,2]
[323233048,1713818099746,-750.0,0.000219,2]
[323233049,1713818099757,-10169.56,0.00021908,7]
[323233050,1713818099767,-10169.56,0.00021908,7]
[323233051,1713818099776,-811.70626689,0.0002191,2]
[323233052,1713818099787,-1039.36,0.00021917,2]
[323233053,1713818099797,-500.0,0.00021917,2]
[323233054,1713818099806,-500.0,0.00021917,2]
[323233055,1713818099816,-666.0,0.00021917,2]
[323233056,1713818099825,-2607.74,0.00021917,2]
[323233057,1713818099834,-2607.74,0.00021917,2]
[323233058,1713818099843,-2607.74,0.00021917,2]
[323233059,1713818099853,-2607.74,0.00021917,2]
[323233060,1713818099862,-2607.74,0.00021917,2]
[323233061,1713818099871,-2607.74,0.00021917,2]
[323233062,1713818099880,-500.0,0.00021918,10]
[323233063,1713818099889,-500.0,0.00021918,10]
[323233064,1713818099898,-500.0,0.00021918,10]
[323233065,1713818099910,-500.0,0.00021918,10]
[323233066,1713818099919,-500.0,0.00021918,10]
[323233067,1713818099929,-500.0,0.00021918,10]
[323233068,1713818099938,-500.0,0.00021918,10]
[323233069,1713818099947,-500.0,0.00021918,10]
[323233070,1713818099958,-500.0,0.00021918,10]
[323233071,1713818099967,-500.0,0.00021918,10]
[323233072,1713818099977,-500.0,0.00021918,10]
[323233073,1713818099987,-500.0,0.00021918,10]
[323233074,1713818099997,-500.0,0.00021918,10]
[323233075,1713818100006,-500.0,0.00021918,10]
[323233076,1713818100015,-500.0,0.00021918,10]
[323233077,1713818100025,-500.0,0.00021918,10]
[323233078,1713818100034,-500.0,0.00021918,10]
[323233079,1713818100043,-500.0,0.00021918,10]
[323233080,1713818100052,-500.0,0.00021918,10]
[323233081,1713818100062,-500.0,0.00021918,10]
[323233082,1713818100071,-500.0,0.00021918,10]
[323233083,1713818100080,-500.0,0.00021918,10]
[323233084,1713818100090,-500.0,0.00021918,10]
[323233085,1713818100100,-500.0,0.00021918,10]
[323233086,1713818100109,-500.0,0.00021918,10]
[323233087,1713818100118,-500.0,0.00021918,10]
[323233088,1713818100127,-500.0,0.00021918,10]
[323233089,1713818100137,-500.0,0.00021918,10]
[323233090,1713818100146,-500.0,0.00021918,10]
[323233091,1713818100156,-500.0,0.00021918,10]
[323233092,1713818100164,-500.0,0.00021918,10]
[323233093,1713818100174,-500.0,0.00021918,10]
[323233094,1713818100183,-500.0,0.00021918,10]
[323233095,1713818100192,-500.0,0.00021918,10]
[323233096,1713818100201,-500.0,0.00021918,10]
[323233097,1713818100210,-500.0,0.00021918,10]
[323233098,1713818100220,-500.0,0.00021918,10]
[323233099,1713818100229,-500.0,0.00021918,10]
[323233100,1713818100238,-500.0,0.00021918,10]
[323233101,1713818100247,-500.0,0.00021918,10]
[323233102,1713818100256,-500.0,0.00021918,10]
[323233103,1713818100265,-500.0,0.00021918,10]
[323233104,1713818100274,-500.0,0.00021918,10]
[323233105,1713818100283,-500.0,0.00021918,10]
[323233106,1713818100292,-500.0,0.00021918,10]
[323233107,1713818100301,-500.0,0.00021918,10]
[323233108,1713818100310,-500.0,0.00021918,10]
[323233109,1713818100320,-500.0,0.00021918,10]
[323233110,1713818100329,-500.0,0.00021918,10]
[323233111,1713818100338,-500.0,0.00021918,10]
[323233112,1713818100347,-500.0,0.00021918,10]
[323233113,1713818100355,-500.0,0.00021918,10]
[323233114,1713818100364,-500.0,0.00021918,10]
[323233115,1713818100373,-500.0,0.00021918,10]
[323233116,1713818100382,-500.0,0.00021918,10]
[323233117,1713818100392,-500.0,0.00021918,10]
[323233118,1713818100401,-500.0,0.00021918,10]
[323233119,1713818100410,-500.0,0.00021918,10]
[323233120,1713818100419,-500.0,0.00021918,10]
[323233121,1713818100429,-500.0,0.00021918,10]
[323233122,1713818100438,-500.0,0.00021918,10]
[323233123,1713818100447,-222.0,0.00021918,10]
[323233124,1713818100456,-500.0,0.00021918,10]
[323233125,1713818100465,-462.59,0.00021918,2]
[323233126,1713818100474,-2000.0,0.00021918,2]
[323233127,1713818100483,-250.0,0.00021918,2]
[323233128,1713818100492,-500.0,0.00021918,10]
[323233129,1713818100501,-500.0,0.00021918,10]
[323233130,1713818100510,-500.0,0.00021918,10]
[323233131,1713818100519,-250.0,0.00021918,2]
[323233132,1713818100528,-236.314587,0.00021918,2]
[323233133,1713818100538,-236.314587,0.00021918,2]
[323233134,1713818100547,-236.314587,0.00021918,2]
[323233135,1713818100556,-236.314587,0.00021918,2]
[323233136,1713818100565,-236.314587,0.00021918,2]
[323233137,1713818100574,-236.314587,0.00021918,2]
[323233138,1713818100583,-236.314587,0.00021918,2]
[323233139,1713818100592,-236.314587,0.00021918,2]
[323233140,1713818100601,-236.314587,0.00021918,2]
[323233141,1713818100610,-236.314587,0.00021918,2]
[323233142,1713818100619,-236.314587,0.00021918,2]
[323233143,1713818100628,-236.314587,0.00021918,2]
[323233144,1713818100637,-236.314587,0.00021918,2]
[323233145,1713818100647,-236.314587,0.00021918,2]
[323233146,1713818100656,-236.314587,0.00021918,2]
[323233147,1713818100666,-236.314587,0.00021918,2]
[323233148,1713818100675,-236.314587,0.00021918,2]
[323233149,1713818100684,-236.314587,0.00021918,2]
[323233150,1713818100693,-236.314587,0.00021918,2]
[323233151,1713818100702,-236.314581,0.00021918,2]
[323233152,1713818100711,-480.56,0.00021918,2]
[323233153,1713818100720,-400.47,0.00021918,2]
[323233154,1713818100729,-333.73,0.00021918,2]
[323233155,1713818100738,-278.1,0.00021918,2]
[323233156,1713818100747,-231.75,0.00021918,2]
[323233157,1713818100757,-200.0,0.00021918,2]
[323233158,1713818100767,-150.0,0.00021918,2]
[323233159,1713818100778,-150.0,0.00021918,2]
[323233160,1713818100787,-150.0,0.00021918,2]
[323233161,1713818100798,-150.0,0.00021918,2]
[323233162,1713818100809,-150.0,0.00021918,2]
[323233163,1713818100820,-150.0,0.00021918,2]
[323233164,1713818100830,-150.0,0.00021918,2]
[323233165,1713818100840,-150.0,0.00021918,2]
[323233166,1713818100849,-150.0,0.00021918,2]
[323233167,1713818100858,-150.0,0.00021918,2]
[323233168,1713818100867,-150.0,0.00021918,2]
[323233169,1713818100876,-150.0,0.00021918,2]
[323233170,1713818100885,-150.0,0.00021918,2]
[323233171,1713818100895,-150.0,0.00021918,2]
[323233172,1713818100905,-150.0,0.00021918,2]
[323233173,1713818100917,-150.0,0.00021918,2]
[323233174,1713818100926,-150.0,0.00021918,2]
[323233175,1713818100936,-150.0,0.00021918,2]
[323233176,1713818100945,-150.0,0.00021918,2]
[323233177,1713818100955,-150.0,0.00021918,2]
[323233178,1713818100964,-150.0,0.00021918,2]
[323233179,1713818100973,-150.0,0.00021918,2]
[323233180,1713818100982,-150.0,0.00021918,2]
[323233181,1713818100992,-150.0,0.00021918,2]
[323233182,1713818101002,-150.0,0.00021918,2]
[323233183,1713818101011,-150.0,0.00021918,2]
[323233184,1713818101020,-150.0,0.00021918,2]
[323233185,1713818101029,-150.0,0.00021918,2]
[323233186,1713818101039,-150.0,0.00021918,2]